bitfinex/quotes_ETHUSD_20250318
["timestamp","ask_amount","ask_price","bid_price","bid_amount"]
[1742314247392,22.70466258,1887.2,1887.1,5.29913]
[1742314248196,27.96266258,1887.2,1887.1,5.29913]
[1742314250336,34.06483446,1887.2,1887.1,4.92451811]
[1742314250529,34.06483446,1887.2,1887.0,5.29941]
[1742314250728,0.55,1887.1,1886.9,10.59925]
[1742314250921,4.76757188,1887.0,1886.9,5.29958]
[1742314251303,5.29932907,1887.0,1886.9,5.29958]
[1742314251633,5.29932907,1887.0,1886.8,11.43984]
[1742314252233,5.29932907,1887.0,1886.9,5.29969]
[1742314253237,4.76757188,1887.0,1886.9,5.29969]
[1742314253461,4.76757188,1887.1,1887.0,5.29929]
[1742314253754,23.1950907,1887.2,1887.1,5.29913]
[1742314255253,27.96266258,1887.2,1887.1,5.29913]
[1742314255732,10.41666258,1887.2,1887.1,5.29913]
[1742314255933,0.3910907,1887.2,1887.1,5.29913]
[1742314256175,4.76757188,1887.2,1887.1,6.04913]
[1742314257446,5.16420322,1887.2,1887.1,6.04913]
[1742314258259,0.39663134,1887.2,1887.1,6.04913]
[1742314258457,10.02257188,1887.3,1887.2,5.29885]
[1742314259935,5.255,1887.3,1887.2,5.29885]
[1742314260139,4.76757188,1887.4,1887.3,5.29857]
[1742314260338,10.02257188,1887.6,1887.4,11.35316]
[1742314260537,10.02257188,1887.6,1887.5,5.29791]
[1742314260750,5.15631046,1887.6,1887.5,5.29791]
[1742314261429,0.38873858,1887.6,1887.5,5.29791]
[1742314261634,4.76757188,1887.6,1887.5,5.29791]
[1742314262831,5.255,1887.7,1887.6,5.29773]
[1742314263027,10.02257188,1887.7,1887.6,5.29773]
[1742314264788,4.76757188,1887.8,1887.7,5.29736]
[1742314264995,4.76757188,1887.8,1887.7,7.637542]
[1742314265580,4.76757188,1887.8,1887.7,5.29736]
[1742314265795,7.925027,1887.6,1887.5,5.29788]
[1742314265993,4.76757188,1887.6,1887.5,5.29788]
[1742314267894,5.52517188,1887.6,1887.2,6.14]
[1742314268094,5.52517188,1887.3,1887.2,5.29881]
[1742314270279,5.52517188,1887.3,1887.1,5.29897]
[1742314270485,4.76757188,1887.2,1887.1,5.29897]
[1742314271075,1.04033033,1887.6,1887.4,5.29829]
[1742314271279,10.02057188,1887.5,1887.4,5.29829]
[1742314272206,4.76757188,1887.5,1887.4,6.05389]
[1742314272412,4.76757188,1887.7,1887.6,5.29773]
[1742314273181,4.76757188,1887.7,1887.6,8.29773]
[1742314273513,4.76757188,1887.7,1887.6,9.12383]
[1742314274888,4.76757188,1887.8,1887.6,9.12383]
[1742314275114,5.253,1887.9,1887.8,5.29717]
[1742314275115,10.02057188,1887.9,1887.8,5.29717]
[1742314275408,4.76757188,1887.9,1887.8,5.29717]
[1742314278644,0.39857363,1888.0,1887.9,6.12879]
[1742314278841,5.252,1888.1,1888.0,5.29661]
[1742314279717,10.01957188,1888.1,1888.0,5.29661]
[1742314281811,4.76757188,1888.1,1888.0,5.29661]
[1742314282236,5.16875644,1888.1,1888.0,5.29661]
[1742314282549,3.871742,1888.0,1887.9,10.59361]
[1742314282766,6.23715805,1888.1,1888.0,5.29661]
[1742314283558,11.00472993,1888.1,1888.0,5.29661]
[1742314283914,11.55472993,1888.1,1888.0,5.29661]
[1742314284122,7.57625805,1888.1,1888.0,5.29661]
[1742314285426,12.34382993,1888.1,1888.0,5.29661]
[1742314285816,12.34382993,1888.1,1887.9,5.29672]
[1742314286018,1.23438299,1888.0,1887.9,5.29672]
[1742314286220,10.76952675,1888.0,1887.9,5.29672]
[1742314287940,6.00195487,1888.0,1887.9,5.29672]
[1742314288249,9.53514376,1888.0,1887.9,5.29672]
[1742314288844,9.53514376,1888.0,1887.7,5.29732]
[1742314289044,4.76757188,1887.8,1887.7,5.29732]
[1742314289211,11.32207188,1887.8,1887.6,5.29758]
[1742314289415,4.76757188,1887.7,1887.6,5.29758]
[1742314290028,5.89977907,1887.7,1887.4,5.29824]
[1742314290312,10.82009188,1887.5,1887.2,5.29884]
[1742314290511,4.76757188,1887.3,1887.2,5.29884]
[1742314292518,9.53514376,1887.3,1887.1,10.59807]
[1742314292719,9.53514376,1887.2,1887.1,10.59807]
[1742314293138,17.10326814,1887.2,1886.8,5.29995]
[1742314293316,4.76757188,1886.9,1886.8,10.59975]
[1742314293527,4.76757188,1886.9,1886.8,5.2998]
[1742314294636,5.25,1887.0,1886.9,6.06619]
[1742314294831,10.01757188,1887.0,1886.9,6.06619]
[1742314295164,10.01757188,1887.0,1886.9,6.05218461]
[1742314295371,4.76757188,1887.0,1886.9,6.05218461]
[1742314296666,4.76757188,1887.0,1886.9,7.18738307]
[1742314296849,4.76757188,1887.0,1886.9,10.18738307]
[1742314297241,4.76757188,1887.0,1886.9,45.18738307]
[1742314297442,18.57512375,1887.5,1887.2,5.29879]
[1742314297673,4.76757188,1887.3,1887.2,5.29879]
[1742314297963,4.76757188,1887.3,1887.2,6.441542]
[1742314298168,4.76757188,1887.3,1887.2,45.268142]
[1742314298368,4.76757188,1887.4,1887.3,8.29846]
[1742314298563,4.76757188,1888.0,1887.6,5.29765]
[1742314298763,5.25,1887.9,1887.8,5.29713]
[1742314300568,10.01757188,1887.9,1887.8,5.29713]
[1742314303451,10.59455,1887.7,1887.5,5.29786]
[1742314303657,4.76757188,1887.6,1887.5,10.59567]
[1742314304918,5.97347279,1888.0,1887.9,5.29689]
[1742314305251,5.17347279,1888.0,1887.9,5.29689]
[1742314308176,9.94104467,1888.0,1887.9,5.29689]
[1742314308708,0.40590091,1888.0,1887.9,6.356284]
[1742314308879,2.12666862,1888.4,1888.3,5.29576]
[1742314309084,11.75572333,1888.4,1888.3,5.29576]
[1742314309487,11.20572333,1888.4,1888.3,5.29576]
[1742314309690,5.95672333,1888.4,1888.3,5.29576]
[1742314309897,11.20572333,1888.4,1888.3,5.29576]
[1742314310092,11.90906272,1888.4,1888.3,5.15060446]
[1742314310297,11.90906272,1888.4,1888.2,5.29601]
[1742314310494,4.76757188,1888.3,1888.2,10.59193]
[1742314310700,4.76757188,1888.3,1888.2,5.29592]
[1742314310875,5.95847815,1888.3,1888.2,5.29592]
[1742314311287,4.76757188,1888.3,1888.2,5.29592]
[1742314312830,5.17132333,1888.4,1888.3,5.29576]
[1742314313183,5.17132333,1888.4,1888.3,6.04786]
[1742314313489,4.76757188,1888.4,1888.3,9.04786]
[1742314313717,4.76757188,1888.4,1888.3,10.482238]
[1742314314007,4.76757188,1888.6,1888.5,5.2951]
[1742314314195,4.76757188,1888.6,1888.5,6.047]
[1742314314411,0.01,1888.9,1888.8,5.29436]
[1742314314611,0.01,1888.9,1888.8,7.15165]
[1742314314978,4.77757188,1888.9,1888.8,6.09276]
[1742314315280,4.77757188,1888.9,1888.8,5.29436]
[1742314318608,4.77757188,1888.9,1888.7,10.58905]
[1742314318915,4.76757188,1888.8,1888.7,5.29451]
[1742314321945,0.01,1888.9,1888.7,5.29451]
[1742314321946,0.01,1888.9,1888.8,9.09166]
[1742314322237,4.77757188,1888.9,1888.8,6.09166]
[1742314322417,0.01,1888.9,1888.8,10.230277]
[1742314323550,1e-05,1888.9,1888.8,10.198277]
[1742314323823,1e-05,1888.9,1888.8,16.338277]
[1742314324134,1e-05,1888.9,1888.8,21.10584888]
[1742314324685,18.3004,1889.8,1888.8,21.10584888]
[1742314324686,4.76757188,1889.8,1889.7,5.29184]
[1742314325162,0.7754,1890.2,1890.1,5.29072]
[1742314325364,5.94528796,1890.2,1890.1,5.29072]
[1742314325681,2.732378,1890.1,1890.0,5.29096]
[1742314325883,4.76757188,1890.1,1890.0,5.29096]
[1742314326037,4.76757188,1890.1,1889.9,5.29128]
[1742314326237,4.76757188,1890.0,1889.9,5.29128]
[1742314326432,4.76757188,1890.0,1889.6,12.25511]
[1742314326433,4.76757188,1890.0,1889.8,10.58291]
[1742314326661,4.76757188,1889.9,1889.8,5.29136]
[1742314327078,4.76757188,1889.9,1889.7,5.29174]
[1742314327235,4.76757188,1889.8,1889.7,10.58348]
[1742314327572,4.7328597,1889.8,1889.7,5.29174]
[1742314327861,4.7328597,1889.8,1889.5,5.29238]
[1742314328072,4.7328597,1889.6,1889.5,5.2924]
[1742314329437,5.243,1889.8,1889.7,5.29184]
[1742314329745,10.5001597,1889.8,1889.7,5.29184]
[1742314330264,10.5001597,1889.8,1889.6,5.29205]
[1742314330446,0.8281,1889.7,1889.4,10.58511]
[1742314330766,4.7328597,1889.5,1889.3,5.29285]
[1742314330964,0.47328597,1889.4,1889.1,10.58689]
[1742314331285,4.7328597,1889.2,1889.1,8.2934]
[1742314331657,5.243,1889.4,1889.3,5.29296]
[1742314331851,9.9758597,1889.4,1889.3,5.29296]
[1742314332260,4.7328597,1889.4,1889.3,5.29296]
[1742314332433,5.13995341,1889.4,1889.3,5.29296]
[1742314333134,5.243,1889.7,1889.4,0.7874]
[1742314333344,10.37139067,1889.7,1889.6,5.29212]
[1742314334066,4.7328597,1889.9,1889.8,5.29156]
[1742314334272,4.7328597,1889.9,1889.7,5.29184]
[1742314334570,5.67943164,1889.9,1889.7,10.58355]
[1742314335092,4.7328597,1889.8,1889.6,5.29212]
[1742314335442,5.12926653,1889.8,1889.5,5.29224]
[1742314335642,5.12926653,1889.8,1889.4,5.29265]
[1742314335643,4.7328597,1889.6,1889.4,5.29253]
[1742314335870,4.7328597,1889.6,1889.5,5.2924]
[1742314336382,5.81354567,1889.6,1889.5,5.2924]
[1742314336960,4.7328597,1889.6,1889.5,5.2924]
[1742314339996,5.2924,1889.5,1889.3,5.29292]
[1742314340158,5.29197,1889.7,1889.4,5.29263]
[1742314340598,4.7328597,1889.5,1889.4,5.29243]
[1742314343596,5.63840683,1889.8,1889.6,5.29212]
[1742314343597,4.7328597,1889.7,1889.6,5.29212]
[1742314349172,4.74699413,1889.7,1889.6,5.29212]
[1742314349870,5.14340096,1889.8,1889.7,5.29184]
[1742314350079,4.74699413,1889.8,1889.7,5.29184]
[1742314350968,4.74699413,1889.8,1889.7,8.29184]
[1742314353396,5.1495908,1889.8,1889.7,8.29184]
[1742314355367,0.8171,1890.3,1890.2,5.29044]
[1742314355602,5.96958127,1890.3,1890.1,4.49423419]
[1742314355800,1.22258714,1890.3,1889.8,11.43154]
[1742314355994,1.22258714,1890.3,1890.1,5.29062]
[1742314356189,1.22258714,1890.3,1890.0,5.29096]
[1742314356389,6.51276714,1890.3,1889.9,5.29121]
[1742314356572,0.7766,1890.0,1889.8,5.29139]
[1742314356769,5.29139,1889.8,1889.5,5.29235]
[1742314356973,4.74699413,1889.6,1889.5,5.2924]
[1742314360077,9.49398826,1889.6,1889.5,5.2924]
[1742314360277,5.69639296,1889.6,1889.5,5.2924]
[1742314360579,4.74699413,1889.6,1889.5,5.2924]
[1742314361900,4.74699413,1889.6,1889.5,6.0684]
[1742314362205,0.38857194,1889.8,1889.7,5.29184]
[1742314362388,4.74699413,1889.8,1889.7,5.29184]
[1742314364000,4.74699413,1889.8,1889.7,6.06834]
[1742314364189,4.74699413,1889.8,1889.7,10.818374]
[1742314365715,4.74699413,1889.8,1889.7,9.06834]
[1742314366730,0.39096997,1889.9,1889.8,5.29156]
[1742314367229,5.238,1890.2,1890.1,5.29058]
[1742314367931,9.98499413,1890.2,1890.1,5.29058]
[1742314368631,10.3927421,1890.2,1890.1,5.29058]
[1742314368929,11.51251631,1890.2,1890.1,5.29058]
[1742314370482,10.3917421,1890.2,1890.1,5.29058]
[1742314370687,5.1547421,1890.2,1890.1,5.29058]
[1742314372921,5.1547421,1890.2,1890.1,6.06868]
[1742314373307,5.1547421,1890.2,1890.1,5.29058]
[1742314379039,5.1547421,1890.2,1890.0,5.29088]
[1742314379207,5.1547421,1890.2,1890.1,5.29072]
[1742314382512,5.1547421,1890.2,1890.0,10.58175]
[1742314382513,2.509364,1890.1,1890.0,10.58175]
[1742314382697,5.1547421,1890.2,1890.1,5.29072]
[1742314385443,4.74699413,1890.2,1890.1,8.29072]
[1742314385627,4.74699413,1890.2,1890.1,9.725579]
[1742314386230,4.74699413,1890.2,1890.1,8.29072]
[1742314389510,5.14605223,1890.2,1890.1,8.29072]
[1742314390814,5.14605223,1890.2,1890.1,5.29072]
[1742314396359,5.95065223,1890.2,1890.1,5.29072]
[1742314398159,5.95065223,1890.2,1889.9,5.29116]
[1742314398320,4.74699413,1890.0,1889.9,5.29116]
[1742314398996,0.7785,1889.9,1889.8,5.29145]
[1742314399190,0.7785,1889.9,1889.7,5.29181]
[1742314399386,0.7785,1889.9,1889.7,10.58352]
[1742314399387,4.74699413,1889.8,1889.7,10.58352]
[1742314402067,4.74699413,1889.8,1889.7,5.29171]
[1742314402270,5.29978354,1889.8,1889.7,5.29171]
[1742314404007,3.932727,1889.7,1889.6,5.29201]
[1742314404305,4.74699413,1889.7,1889.6,5.29201]
[1742314405508,10.7094588,1889.7,1889.3,5.29278]
[1742314405711,4.74699413,1889.4,1889.3,5.29278]
[1742314407498,6.02649354,1889.4,1889.3,5.29278]
[1742314409180,5.55179413,1889.4,1889.3,5.29278]
[1742314409507,4.74699413,1889.4,1889.3,5.29278]
[1742314411627,4.74699413,1889.4,1889.3,5.29278]
[1742314415842,4.74699413,1889.4,1889.3,6.04318]
[1742314417712,4.74699413,1889.4,1889.3,5.29278]
[1742314419950,5.63057054,1889.7,1889.6,5.29212]
[1742314420129,11.07290067,1889.7,1889.6,5.29212]
[1742314421210,15.8198948,1889.7,1889.6,5.29212]
[1742314422130,11.07290067,1889.7,1889.6,5.29212]
[1742314422446,15.8198948,1889.7,1889.6,5.29212]
[1742314423003,5.29212,1889.6,1889.5,5.29228]
[1742314423231,10.28828907,1889.6,1889.5,5.29228]
[1742314424301,5.29268,1889.4,1888.8,0.7669]
[1742314424503,5.234,1889.3,1889.1,4.63352459]
[1742314425934,4.74699413,1889.2,1889.1,4.63352459]
[1742314426334,5.74509354,1889.2,1889.1,4.63352459]
[1742314426735,6.14672069,1889.2,1889.1,4.63352459]
[1742314427262,6.14672069,1889.2,1889.0,5.29369]
[1742314427450,6.14672069,1889.2,1889.0,10.58736]
[1742314428043,6.14672069,1889.2,1889.1,5.29352]
[1742314429065,6.14672069,1889.2,1889.0,5.29367]
[1742314429236,6.14672069,1889.2,1889.0,10.58735]
[1742314429554,6.14672069,1889.2,1889.1,5.29352]
[1742314431247,5.14862128,1889.2,1889.1,5.29352]
[1742314431452,5.14862128,1889.2,1889.0,10.58722]
[1742314431652,5.14862128,1889.2,1889.1,5.29352]
[1742314437732,5.052644,1889.1,1889.0,5.2936]
[1742314438070,4.74699413,1889.1,1888.9,10.58788]
[1742314438231,4.74699413,1889.0,1888.9,10.58788]
[1742314438664,4.74699413,1889.0,1888.9,5.29389]
[1742314438824,10.58822,1888.8,1888.6,5.29468]
[1742314439154,4.74699413,1888.7,1888.6,5.29468]
[1742314439987,5.15128564,1888.7,1888.6,5.29468]
[1742314442734,4.74699413,1888.8,1888.6,4.66634692]
[1742314443055,4.74699413,1888.7,1888.6,5.2948]
[1742314443559,5.15244796,1888.7,1888.6,5.2948]
[1742314444055,0.40545383,1888.7,1888.6,5.2948]
[1742314444264,4.74699413,1888.8,1888.6,6.0779]
[1742314444556,4.74699413,1888.8,1888.7,5.29464]
[1742314446058,9.49398826,1888.8,1888.7,5.29464]
[1742314446833,4.74699413,1888.8,1888.7,5.29464]
[1742314448163,4.74699413,1888.8,1888.7,6.06174]
[1742314449652,9.49398826,1888.8,1888.7,5.29464]
[1742314449875,11.26848709,1888.8,1888.7,5.29464]
[1742314450173,11.26848709,1888.8,1888.6,5.2948]
[1742314450333,11.26848709,1888.8,1888.6,10.58953]
[1742314450657,0.55,1888.7,1888.5,5.29507]
[1742314450857,9.97999413,1888.6,1888.5,5.29507]
[1742314452170,10.24246506,1888.6,1888.5,5.29507]
[1742314452461,9.97999413,1888.6,1888.5,5.29507]
[1742314453038,4.74699413,1888.6,1888.5,6.10487]
[1742314453669,0.39711574,1888.7,1888.6,5.29492]
[1742314453978,4.74699413,1888.7,1888.6,5.29492]
[1742314454173,1.18122715,1889.2,1889.1,5.29352]
[1742314454760,6.67845731,1889.2,1889.1,5.29352]
[1742314454953,5.63462715,1889.2,1889.1,5.29352]
[1742314455281,5.14862128,1889.2,1889.1,5.29352]
[1742314455480,5.14862128,1889.2,1889.1,7.14144]
[1742314456471,5.14862128,1889.2,1889.1,5.29352]
[1742314457267,5.90402128,1889.2,1889.1,5.29352]
[1742314458387,5.14862128,1889.2,1889.1,5.29352]
[1742314465804,0.40162715,1889.2,1889.1,5.29352]
[1742314465970,4.74699413,1889.2,1889.1,6.07212]
[1742314466293,4.74699413,1889.2,1889.1,7.2087]
[1742314467687,17.513,1889.7,1889.6,5.29212]
[1742314467889,5.23,1889.7,1889.6,5.29212]
[1742314469088,0.7912,1889.8,1889.7,5.29184]
[1742314469287,6.0212,1889.8,1889.7,5.29184]
[1742314469459,10.76819413,1889.8,1889.7,5.29184]
[1742314469860,5.53819413,1889.8,1889.7,5.29184]
[1742314470062,4.74699413,1889.8,1889.7,5.29184]
[1742314470695,5.15360624,1889.8,1889.7,5.29184]
[1742314473692,5.15360624,1889.8,1889.7,5.89125283]
[1742314474098,5.15360624,1889.8,1889.7,5.29184]
[1742314477677,0.40661211,1889.8,1889.7,6.12494]
[1742314477880,4.74699413,1889.8,1889.7,6.12494]
[1742314479168,4.74699413,1889.9,1889.8,5.29156]
[1742314479369,5.228,1890.2,1890.1,5.29072]
[1742314479570,9.97499413,1890.2,1890.1,5.29072]
[1742314480493,4.74699413,1890.2,1890.1,5.29072]
[1742314480676,6.0384,1890.3,1890.2,5.29044]
[1742314480883,1.44941314,1890.6,1890.4,5.28965]
[1742314481203,6.3859608,1890.6,1890.4,5.28965]
[1742314481399,7.02455688,1890.6,1890.4,5.28965]
[1742314481971,7.02455688,1890.6,1890.4,10.57938]
[1742314482173,7.02455688,1890.6,1890.5,5.2896]
[1742314482395,6.54455101,1890.6,1890.5,5.2896]
[1742314482598,11.13295493,1890.6,1890.5,5.2896]
[1742314482771,5.90595493,1890.6,1890.5,5.2896]
[1742314482973,5.14115493,1890.6,1890.5,5.2896]
[1742314486407,0.7886,1890.5,1890.4,5.28965]
[1742314486706,4.74699413,1890.5,1890.4,5.28965]
[1742314489517,3.576215,1890.4,1890.3,5.29005]
[1742314489723,0.8204,1890.4,1890.3,5.29005]
[1742314489922,5.56739413,1890.4,1890.2,5.29041]
[1742314490126,10.79239413,1890.4,1890.1,10.58128]
[1742314490322,8.12831283,1890.4,1890.2,5.29041]
[1742314490621,8.12831283,1890.4,1890.1,5.29063]
[1742314490828,8.12831283,1890.4,1890.2,5.2902]
[1742314490978,6.0454,1890.4,1890.3,5.29016]
[1742314491301,9.97199413,1890.4,1890.3,5.29016]
[1742314491919,4.74699413,1890.4,1890.3,5.29016]
[1742314492209,0.3941608,1890.6,1890.3,5.29016]
[1742314492210,5.14115493,1890.6,1890.5,5.2896]
[1742314492418,4.74699413,1890.6,1890.5,5.2896]
[1742314494193,5.15407604,1890.6,1890.5,5.2896]
[1742314494628,5.15407604,1890.6,1890.5,6.347537]
[1742314494795,0.40708191,1890.6,1890.5,6.347537]
[1742314495131,4.74699413,1890.7,1890.6,5.28932]
[1742314495491,4.74699413,1890.7,1890.6,6.07952]
[1742314496427,0.8266,1891.2,1891.1,5.28792]
[1742314496596,11.1980137,1891.2,1891.1,5.28792]
[1742314497124,5.1474137,1891.2,1891.1,5.28792]
[1742314499204,6.11632,1891.1,1890.9,5.28847]
[1742314499407,4.74699413,1891.0,1890.9,5.28847]
[1742314502131,5.53119413,1891.0,1890.9,5.28847]
[1742314502663,6.45381957,1891.2,1891.1,5.28792]
[1742314503113,6.45381957,1891.2,1890.9,5.28846]
[1742314503565,4.74699413,1891.0,1890.9,5.28848]
[1742314504414,0.40041957,1891.2,1891.1,5.28792]
[1742314504613,9.96899413,1891.2,1891.1,5.28792]
[1742314505025,0.1118572,1891.5,1891.4,5.28708]
[1742314505368,10.08085133,1891.5,1891.4,5.28708]
[1742314505671,0.1118572,1891.5,1891.4,5.28708]
[1742314505830,4.85885133,1891.5,1891.4,5.28708]
[1742314506030,5.25854794,1891.5,1891.4,5.28708]
[1742314508681,5.28708,1891.4,1891.3,5.28728]
[1742314508966,6.56470273,1891.5,1891.3,5.28728]
[1742314509143,6.56470273,1891.5,1891.1,5.28778]
[1742314509144,11.85163273,1891.5,1891.1,5.28778]
[1742314509336,5.56239413,1891.2,1891.0,5.28798]
[1742314509532,0.55623941,1891.1,1891.0,5.28798]
[1742314509744,5.56239413,1891.2,1891.1,5.28792]
[1742314510778,10.30938826,1891.2,1891.1,5.28792]
[1742314510977,10.30938826,1891.2,1891.0,5.28813]
[1742314511337,15.59716826,1891.2,1891.1,0.5234]
[1742314511938,5.28805,1891.1,1890.7,10.57792]
[1742314512177,0.8126,1891.0,1890.8,5.28871]
[1742314512337,5.221,1890.9,1890.8,5.28871]
[1742314513041,9.96799413,1890.9,1890.8,5.28871]
[1742314514956,4.74699413,1890.9,1890.8,5.28871]
[1742314515160,9.96699413,1890.9,1890.8,5.28871]
[1742314515391,5.22,1890.9,1890.8,5.28871]
[1742314515563,9.96699413,1890.9,1890.8,5.28871]
[1742314516111,9.96699413,1890.9,1890.8,6.34647]
[1742314516257,4.74699413,1890.9,1890.8,10.12297]
[1742314516458,5.22,1891.3,1891.2,5.28764]
[1742314516684,9.96699413,1891.3,1891.2,5.28764]
[1742314517069,14.71398826,1891.3,1891.2,5.28764]
[1742314517269,9.96699413,1891.3,1891.2,5.28764]
[1742314517466,15.78638767,1891.3,1891.2,5.28764]
[1742314518058,11.03939354,1891.3,1891.2,5.28764]
[1742314518459,9.96699413,1891.3,1891.2,5.28764]
[1742314521692,14.71398826,1891.3,1891.2,5.28764]
[1742314522270,4.570448,1891.2,1891.1,5.28779]
[1742314522468,0.7667,1891.2,1891.1,5.28779]
[1742314523890,0.7667,1891.2,1890.9,5.28845]
[1742314523891,5.317669,1891.0,1890.9,5.28845]
[1742314524114,4.74699413,1891.0,1890.8,16.71731]
[1742314524397,5.22169354,1891.0,1890.9,5.28848]
[1742314524894,5.62713226,1891.0,1890.8,5.2886]
[1742314525103,5.62713226,1891.0,1890.6,0.825]
[1742314525104,5.829405,1890.7,1890.6,10.5784]
[1742314525305,4.74699413,1890.8,1890.6,5.28919]
[1742314525467,0.47469941,1890.7,1890.6,5.28919]
[1742314525672,4.74699413,1890.8,1890.6,10.57838]
[1742314525894,4.74699413,1890.8,1890.6,5.28919]
[1742314526073,4.74699413,1890.8,1890.4,5.28985]
[1742314526399,9.49398826,1890.5,1890.2,5.29039]
[1742314526592,4.74699413,1890.3,1890.2,10.58064]
[1742314527306,5.1372595,1890.3,1890.2,10.58064]
[1742314527702,5.1372595,1890.3,1890.2,5.29025]
[1742314528304,6.25390545,1890.3,1890.1,5.29071]
[1742314528600,4.74699413,1890.2,1890.0,10.58184]
[1742314528801,4.74699413,1890.2,1890.0,10.58175]
[1742314528968,7.236402,1890.0,1889.8,5.29142]
[1742314529176,4.74699413,1889.9,1889.8,10.5828]
[1742314530840,4.74699413,1889.9,1886.9,0.1]
[1742314530841,50.5,1889.0,1886.9,0.1]
[1742314530987,0.7827,1888.8,1887.8,0.7801]
[1742314531317,5.348,1888.7,1888.6,5.29492]
[1742314531517,5.87292259,1888.7,1888.4,5.29531]
[1742314531722,5.348,1888.7,1888.5,5.29503]
[1742314531888,5.348,1888.7,1888.4,5.29543]
[1742314532084,5.348,1888.7,1888.0,5.29661]
[1742314532290,5.348,1888.7,1888.6,5.29492]
[1742314532508,5.348,1888.7,1888.5,5.29498]
[1742314532709,5.348,1888.7,1888.5,10.59]
[1742314532919,5.348,1888.7,1888.5,5.29498]
[1742314533124,5.348,1888.7,1888.5,10.59004]
[1742314533324,5.74439061,1888.7,1888.5,10.59004]
[1742314533499,5.74439061,1888.7,1888.5,10.58999]
[1742314533824,5.74439061,1888.7,1888.5,5.29498]
[1742314534026,5.74439061,1888.7,1888.5,10.58999]
[1742314534228,5.74439061,1888.7,1888.5,5.29498]
[1742314534400,4.68068,1888.5,1888.3,3.0]
[1742314534599,6.39709967,1888.7,1888.0,8.29656]
[1742314534926,6.39709967,1888.7,1888.3,10.5912]
[1742314535088,11.69174967,1888.7,1888.3,5.29556]
[1742314535294,11.69174967,1888.7,1888.3,10.59113]
[1742314535708,11.69174967,1888.7,1888.4,5.29548]
[1742314535923,6.39709967,1888.7,1888.4,5.29548]
[1742314536246,0.63970997,1888.6,1888.2,5.29599]
[1742314536394,5.29536,1888.5,1888.0,5.29647]
[1742314536721,5.29562,1888.4,1887.8,5.29711]
[1742314537049,5.2961,1888.2,1887.8,5.29711]
[1742314537898,5.29665,1888.0,1887.6,5.29759]
[1742314538099,1.47818486,1888.2,1887.8,5.29701]
[1742314538319,5.866562,1888.3,1887.9,5.29676]
[1742314538511,0.5866562,1888.2,1888.0,5.29655]
[1742314538895,0.5866562,1888.2,1888.0,5.29645]
[1742314539095,5.33,1888.2,1888.1,5.29616]
[1742314539701,5.33,1888.2,1888.0,5.29655]
[1742314539930,5.33,1888.2,1888.0,5.29641]
[1742314540294,5.33,1888.2,1888.1,35.0]
[1742314540518,5.327,1888.2,1888.1,35.0]
[1742314541600,5.327,1888.2,1888.1,5.29632]
[1742314541803,5.72791419,1888.2,1888.1,5.29632]
[1742314542420,0.40091419,1888.2,1888.1,8.29632]
[1742314542729,22.832,1888.5,1888.4,5.29548]
[1742314543624,22.832,1888.5,1888.3,5.29575]
[1742314543824,28.12721,1888.5,1888.2,3.0]
[1742314544334,3.0,1888.2,1888.1,8.29617]
[1742314544542,22.832,1888.5,1888.2,8.29593]
[1742314545238,22.832,1888.5,1888.2,13.59181]
[1742314545404,22.832,1888.5,1888.2,8.29588]
[1742314545609,22.832,1888.5,1888.1,8.29632]
[1742314545610,4.597721,1888.2,1888.1,8.29632]
[1742314545837,5.29563,1888.4,1888.1,5.29632]
[1742314546239,28.12729,1888.5,1888.1,5.29632]
[1742314546406,5.29592,1888.3,1887.9,5.29686]
[1742314546609,5.29592,1888.3,1887.9,5.29681]
[1742314546812,6.38156567,1888.2,1887.9,5.29681]
[1742314547110,6.0488,1888.0,1887.7,8.2973]
[1742314547333,11.34567,1888.0,1887.7,3.0]
[1742314547528,1.134567,1887.9,1887.7,8.29744]
[1742314547840,1.134567,1887.9,1887.7,8.29727]
[1742314548038,0.7521,1888.0,1887.7,8.29727]
[1742314548334,0.7521,1888.0,1887.8,5.29703]
[1742314548524,0.7521,1888.0,1887.8,10.59408]
[1742314549541,2.064,1887.8,1887.7,5.29745]
[1742314549843,5.318,1887.9,1887.8,8.29717]
[1742314550630,1.45456789,1888.2,1887.9,5.29687]
[1742314550807,5.316,1888.0,1887.9,5.29669]
[1742314551206,5.316,1888.0,1887.8,13.59416]
[1742314551430,5.316,1888.0,1887.9,5.29689]
[1742314552946,0.39240062,1888.2,1888.1,5.29632]
[1742314553109,5.307,1888.3,1888.2,5.29604]
[1742314553641,5.307,1888.3,1888.1,10.5925]
[1742314554243,5.307,1888.3,1888.2,5.29604]
[1742314556713,5.307,1888.3,1888.1,5.29618]
[1742314556918,5.307,1888.3,1888.2,5.29604]
[1742314560354,5.307,1888.3,1888.1,5.29612]
[1742314560552,5.307,1888.3,1888.2,5.29604]
[1742314561152,11.23946523,1888.3,1888.0,5.29655]
[1742314561335,6.08835,1888.2,1887.9,3.0]
[1742314561533,6.49563777,1888.2,1887.9,3.0]
[1742314561732,3.0,1887.9,1887.7,10.59479]
[1742314561924,5.284,1887.9,1887.7,5.29734]
[1742314562129,5.284,1887.9,1887.6,5.29757]
[1742314562447,0.7758,1887.8,1887.6,5.29757]
[1742314562643,0.7758,1887.8,1887.7,5.29745]
[1742314562851,1.38178,1887.8,1887.7,5.29745]
[1742314563251,5.284,1887.9,1887.8,5.29717]
[1742314563422,1.40076378,1888.1,1887.8,5.29717]
[1742314563757,5.284,1888.0,1887.8,5.29717]
[1742314564190,5.284,1888.0,1887.9,5.29686]
[1742314564576,5.284,1888.0,1887.7,5.29745]
[1742314564741,0.5284,1887.9,1887.7,5.29745]
[1742314565366,0.5284,1887.9,1887.7,10.59474]
[1742314565525,0.5284,1887.9,1887.7,10.59459]
[1742314565959,0.5284,1887.9,1887.8,5.29717]
[1742314566140,5.284,1888.0,1887.9,5.29689]
[1742314567029,5.284,1888.0,1887.8,5.29698]